Cogmind - Beta 14 @@@ ROGUE MODE // 2024.10.20 @ 23:09:41 Player: ToasterKoishi Result: Destroyed by P-80 Master with Gamma Rifle Performance ------------- Evolutions (7) 3500 Regions Visited (10) 2000 Robots Destroyed (0) 0 Value Destroyed (0) 0 Prototype IDs (1) 20 Alien Tech Used (0) 0 Bonus (5085) 5085 TOTAL SCORE: 10605 Bonus ------- Pacifist 4085 Entered DSFs 1000 Cogmind --------- Core Integrity 0/1300 Matter 263/300 Energy 100/100 System Corruption 5% Temperature Cool (0) Movement Core (50) Location -3/Research Parts ------- > --- POWER (2) -------- (None) > --- PROPULSION (8) --- (None) > --- UTILITY (9) ------ Spectral Analyzer Improved Utility Shielding > --- WEAPON (2) ------- (None) > --- INVENTORY (5) ---- Advanced Terrain Scan Processor Advanced Terrain Scan Processor Improved Utility Shielding Missile Launcher Peak State ------------ > --- POWER ------------ Light Fission Core > --- PROPULSION ------- Nuclear Pulse Thruster Nuclear Pulse Thruster Nuclear Pulse Thruster Nuclear Pulse Thruster Nuclear Pulse Thruster Field Propulsion Drive > --- UTILITY ---------- Hacking Suite > --- WEAPON ----------- Great Maul > --- INVENTORY -------- Nuclear Pulse Thruster Advanced Terrain Scan Processor Advanced Terrain Scan Processor Missile Launcher [Rating: 43] Favorites ----------- Power Light Fission Core Power Core Light Fission Core Propulsion Nuclear Pulse Thruster Flight Unit Nuclear Pulse Thruster Utility Improved Utility Shielding Processor Spectral Analyzer Hackware Hacking Suite Protection Improved Utility Shielding Weapon Great Maul Launcher Missile Launcher Impact Weapon Great Maul Build | -11 -10 -9 -8 -7 -6 -6 -5 -4 -4 -3 ------- Run | Yrd Mat Mat Mat Fac Fac DSF Fac Fac DSF Res Slots Evolved 14 | . . 2 2 2 2 . 2 2 . 2 Power 1 | . . . . . . . 1 . . . Propulsion 6 | . . 1 1 1 1 . . 1 . 1 Utility 7 | . . 1 1 1 1 . 1 1 . 1 Weapon . | . . . . . . . . . . . Parts Attached 22 | . . . . 1 1 6 6 2 1 5 Power 2 | . . . . . . 1 1 . . . Engine . | . . . . . . . . . . . Core 2 | . . . . . . 1 1 . . . Reactor . | . . . . . . . . . . . Propulsion 13 | . . . . 1 1 5 2 2 . 2 Treads . | . . . . . . . . . . . Leg . | . . . . . . . . . . . Wheel . | . . . . . . . . . . . Hover . | . . . . . . . . . . . Flight 13 | . . . . 1 1 5 2 2 . 2 Utility 4 | . . . . . . . 2 . 1 1 Device . | . . . . . . . . . . . Storage . | . . . . . . . . . . . Processor 1 | . . . . . . . . . . 1 Hackware 1 | . . . . . . . 1 . . . Protection 2 | . . . . . . . 1 . 1 . Artifact . | . . . . . . . . . . . Weapon 3 | . . . . . . . 1 . . 2 Energy Gun . | . . . . . . . . . . . Energy Cannon . | . . . . . . . . . . . Ballistic Gun . | . . . . . . . . . . . Ballistic Cannon . | . . . . . . . . . . . Launcher 2 | . . . . . . . . . . 2 Special Weapon . | . . . . . . . . . . . Impact Weapon 1 | . . . . . . . 1 . . . Slashing Weapon . | . . . . . . . . . . . Piercing Weapon . | . . . . . . . . . . . Special Melee Weapon . | . . . . . . . . . . . Unidentified Prototypes 1 | . . . . . . . . . . 1 Parts Lost 12 | . . . . 1 . . 6 . . 5 Power 1 | . . . . . . . 1 . . . Propulsion 10 | . . . . 1 . . 5 . . 4 Utility 1 | . . . . . . . . . . 1 Weapon . | . . . . . . . . . . . Highest Loss Streak 5 | . . . . 1 . . 5 . . 4 To Critical Strikes . | . . . . . . . . . . . Average Slot Usage (%) 14 | . . . . 6 4 13 45 22 21 15 Flight 8 | . . . . 6 4 13 32 10 10 5 Protection 2 | . . . . . . . . 5 10 6 Peak Build Rating 43 | . . . . 4 6 31 43 21 19 40 Average Rating 14 | . . . . 3 5 13 37 17 18 21 On Entrance 8 | . . . . . 1 6 31 21 15 19 Naked Turns 228 | . 30 104 70 13 11 . . . . . Heaviest Build 13 | . . . . . . . 13 6 6 12 Greatest Support 37 | 3 3 3 3 5 6 36 37 13 13 26 Greatest Overweight (x) . | . . . . . . . . . . . Average Overweight (x) . | . . . . . . . . . . . Largest Inventory Capacity 5 | 5 5 5 5 5 5 5 5 5 5 5 Average Capacity 5 | 5 5 5 5 5 5 5 5 5 5 5 Most Carried 5 | . . 1 1 4 4 5 5 4 4 4 Average Carried 3 | . . . 1 2 4 4 4 4 4 3 Final Capacity 5 | 5 5 5 5 5 5 5 5 5 5 5 Final Carried 5 | . . 1 1 4 4 5 4 4 4 4 Class Distribution -------------------- 84% | Mutant 15% | Sprinter Dominant Class ---------------- Mutant | -10/Materials Mutant | -9/Materials Mutant | -8/Materials Mutant | -7/Factory Mutant | -6/Factory Mutant | -6/DSF Sprinter | -5/Factory Mutant | -4/Factory Mutant | -4/DSF Mutant | -3/Research Resources | -11 -10 -9 -8 -7 -6 -6 -5 -4 -4 -3 ----------- Run | Yrd Mat Mat Mat Fac Fac DSF Fac Fac DSF Res Matter Collected 286 | 151 . . . . . . 108 . . 27 Remotely . | . . . . . . . . . . . Salvage Created . | . . . . . . . . . . . Parts . | . . . . . . . . . . . Haulers Intercepted . | . . . . . . . . . . . Recyclers Shooed . | . . . . . . . . . . . Parts Field Recycled . | . . . . . . . . . . . Retrieved Matter . | . . . . . . . . . . . Parts Self-Destructed . | . . . . . . . . . . . Prevented . | . . . . . . . . . . . Kills | -11 -10 -9 -8 -7 -6 -6 -5 -4 -4 -3 ------- Run | Yrd Mat Mat Mat Fac Fac DSF Fac Fac DSF Res Combat Hostiles Destroyed . | . . . . . . . . . . . Classes Destroyed . | . . . . . . . . . . . Best Kill Streak . | . . . . . . . . . . . Combat Bots Only . | . . . . . . . . . . . Max Kills in Single Turn . | . . . . . . . . . . . Gunslinging . | . . . . . . . . . . . Exploded . | . . . . . . . . . . . Melee . | . . . . . . . . . . . Uniques/NPCs Destroyed . | . . . . . . . . . . . Combat | -11 -10 -9 -8 -7 -6 -6 -5 -4 -4 -3 -------- Run | Yrd Mat Mat Mat Fac Fac DSF Fac Fac DSF Res Hostile Shots Fired 329 | . . 54 41 29 . 1 44 2 21 137 Missed 140 | . . 16 10 17 . 1 19 2 13 62 Damage Taken 3481 | . . 395 431 114 . . 604 . 235 1702 Core 2669 | . . 395 431 87 . . 305 . 149 1302 Absorbed by Shields . | . . . . . . . . . . . Core Remaining (%) 70 | 100 100 1 21 87 . 100 69 . 87 . Volleys Fired 2 | . . . . . . . . . . 2 Largest 1 | . . . . . . . . . . 1 Hottest 36 | . . . . . . . . . . 36 Shots Fired 2 | . . . . . . . . . . 2 Gun . | . . . . . . . . . . . Cannon . | . . . . . . . . . . . Launcher 2 | . . . . . . . . . . 2 Special . | . . . . . . . . . . . Kinetic . | . . . . . . . . . . . Thermal . | . . . . . . . . . . . Explosive 2 | . . . . . . . . . . 2 Electromagnetic . | . . . . . . . . . . . Robot Hit Streak . | . . . . . . . . . . . Robot Miss Streak . | . . . . . . . . . . . Penetration Max . | . . . . . . . . . . . Secondary Targets . | . . . . . . . . . . . Shots Hit Robots . | . . . . . . . . . . . Core Hits 1 | . . . . . . . 1 . . . Critical Kills . | . . . . . . . . . . . Critical Parts Destroyed . | . . . . . . . . . . . Critical Strikes . | . . . . . . . . . . . Melee Attacks 2 | . . . . . . . 2 . . . Impact 2 | . . . . . . . 2 . . . Slashing . | . . . . . . . . . . . Piercing . | . . . . . . . . . . . Sneak Attacks . | . . . . . . . . . . . Combat Hostiles . | . . . . . . . . . . . Follow-up Attacks . | . . . . . . . . . . . Damage Inflicted 138 | . . 26 63 15 . . 5 . . 29 Guns . | . . . . . . . . . . . Cannons . | . . . . . . . . . . . Explosions . | . . . . . . . . . . . Melee . | . . . . . . . . . . . Ramming 138 | . . 26 63 15 . . 5 . . 29 Kinetic . | . . . . . . . . . . . Thermal . | . . . . . . . . . . . Explosive . | . . . . . . . . . . . Electromagnetic . | . . . . . . . . . . . Impact . | . . . . . . . . . . . Slashing . | . . . . . . . . . . . Piercing . | . . . . . . . . . . . Highest Corruption 4 | . . 2 . . . . . . . 4 Average Corruption 2 | . . 2 . . . . . . . 3 Corruption Purged . | . . . . . . . . . . . Corruption Blocked . | . . . . . . . . . . . Overload Shots . | . . . . . . . . . . . Overflow Damage . | . . . . . . . . . . . Projectiles . | . . . . . . . . . . . Explosions . | . . . . . . . . . . . Melee . | . . . . . . . . . . . Knockbacks . | . . . . . . . . . . . Impact . | . . . . . . . . . . . Kinetic . | . . . . . . . . . . . Secondary . | . . . . . . . . . . . Self-Inflicted Damage 63 | . . 11 29 7 . . 2 . . 14 Shots . | . . . . . . . . . . . Rammed 31 | . . 7 17 1 . . 1 . . 5 Targets Rammed 31 | . . 7 17 1 . . 1 . . 5 Kicked . | . . . . . . . . . . . Crushed . | . . . . . . . . . . . Highest Temperature 181 | . . . . . . . 181 . . 28 Average Temperature 88 | . . . . . . . 89 . . 28 Received Heat Transfer 577 | . . 90 117 42 . . 117 . 36 175 Siege Activations . | . . . . . . . . . . . Robots Corrupted . | . . . . . . . . . . . Combat Hostiles . | . . . . . . . . . . . Parts Fried . | . . . . . . . . . . . Impact Corruptions . | . . . . . . . . . . . Robots Melted . | . . . . . . . . . . . Combat Hostiles . | . . . . . . . . . . . Parts Melted . | . . . . . . . . . . . Heat Transferred . | . . . . . . . . . . . Parts Sabotaged . | . . . . . . . . . . . Parts Stolen . | . . . . . . . . . . . Parts Stripped . | . . . . . . . . . . . Power Chain Reactions . | . . . . . . . . . . . Alert | -11 -10 -9 -8 -7 -6 -6 -5 -4 -4 -3 ------- Run | Yrd Mat Mat Mat Fac Fac DSF Fac Fac DSF Res Peak Influence 453 | . 15 185 167 134 65 49 269 126 98 453 Initial 126 | . . 5 78 75 65 49 25 126 98 54 Average 124 | . 10 72 99 104 65 49 110 126 98 203 Maximum Alert Level 2 | . . . . . . . 1 . . 2 Low Security (%) 82 | 100 100 100 100 100 100 100 75 100 100 55 Level 1 13 | . . . . . . . 25 . . 30 Level 2 4 | . . . . . . . . . . 14 Level 3 . | . . . . . . . . . . . Level 4 . | . . . . . . . . . . . Level 5 . | . . . . . . . . . . . High Security . | . . . . . . . . . . . Max Security . | . . . . . . . . . . . Squads Dispatched 14 | . . 1 2 5 . . 2 . . 4 Investigation 3 | . . 1 . 1 . . 1 . . . Extermination 1 | . . . . . . . . . . 1 Reinforcement 10 | . . . 2 4 . . 1 . . 3 Assault . | . . . . . . . . . . . Garrison . | . . . . . . . . . . . Intercept . | . . . . . . . . . . . Searches Triggered 1 | . . . . . . . . . . 1 Construction Impeded . | . . . . . . . . . . . Haulers Reinforced . | . . . . . . . . . . . Active Scanning Responses . | . . . . . . . . . . . Cargo Convoy Interrupts . | . . . . . . . . . . . Stealth | -11 -10 -9 -8 -7 -6 -6 -5 -4 -4 -3 --------- Run | Yrd Mat Mat Mat Fac Fac DSF Fac Fac DSF Res Distress Signals 6 | . . 2 1 . . . 1 . . 2 Communications Jammed . | . . . . . . . . . . . Distress Signals . | . . . . . . . . . . . Times Spotted 115 | . 1 27 20 8 . . 17 1 2 39 Peak Tracking Total 22 | . 1 22 15 5 . 1 13 1 2 20 Tactical Retreats 12 | . . 3 1 . . . 3 . . 5 Traps | -11 -10 -9 -8 -7 -6 -6 -5 -4 -4 -3 ------- Run | Yrd Mat Mat Mat Fac Fac DSF Fac Fac DSF Res Traps Triggered 3 | . . . 1 1 . . . 1 . . Indirectly . | . . . . . . . . . . . Trap Hack Attempts . | . . . . . . . . . . . Triggered . | . . . . . . . . . . . Disarmed . | . . . . . . . . . . . Reprogrammed . | . . . . . . . . . . . Reused . | . . . . . . . . . . . Traps Extracted . | . . . . . . . . . . . Installed . | . . . . . . . . . . . Triggered . | . . . . . . . . . . . Machines | -11 -10 -9 -8 -7 -6 -6 -5 -4 -4 -3 ---------- Run | Yrd Mat Mat Mat Fac Fac DSF Fac Fac DSF Res Machines Disabled . | . . . . . . . . . . . Max in Single Turn . | . . . . . . . . . . . Machines Repaired . | . . . . . . . . . . . Machines Dismantled . | . . . . . . . . . . . Machines Sabotaged . | . . . . . . . . . . . Overloaded Fab Kills . | . . . . . . . . . . . Hacking | -11 -10 -9 -8 -7 -6 -6 -5 -4 -4 -3 --------- Run | Yrd Mat Mat Mat Fac Fac DSF Fac Fac DSF Res Machines Accessed 13 | . . 3 2 1 1 . 3 1 . 2 Terminals 13 | . . 3 2 1 1 . 3 1 . 2 Fabricators . | . . . . . . . . . . . Repair Stations . | . . . . . . . . . . . Recycling Units . | . . . . . . . . . . . Scanalyzers . | . . . . . . . . . . . Garrison Access . | . . . . . . . . . . . Total Hacks 31 | . . 9 5 4 2 . 7 1 . 3 Successful 14 | . . 4 1 2 1 . 3 1 . 2 Failed 17 | . . 5 4 2 1 . 4 . . 1 Catastrophic 8 | . . 2 1 2 . . 3 . . . Database Lockouts . | . . . . . . . . . . . Manual 19 | . . 8 4 3 . . 4 . . . Terminals 31 | . . 9 5 4 2 . 7 1 . 3 Fabricators . | . . . . . . . . . . . Repair Stations . | . . . . . . . . . . . Recycling Units . | . . . . . . . . . . . Scanalyzers . | . . . . . . . . . . . Garrison Access . | . . . . . . . . . . . Terminal Hacks 14 | . . 4 1 2 1 . 3 1 . 2 Open DSF 4 | . . . . . 1 . . 1 . 2 Level Access Points 3 | . . 1 . 1 . . 1 . . . Emergency Access Points 1 | . . 1 . . . . . . . . Terminal Index 1 | . . . . . . . 1 . . . Zone Layout 5 | . . 2 1 1 . . 1 . . . Fabricator Hacks . | . . . . . . . . . . . Repair Station Hacks . | . . . . . . . . . . . Recycling Unit Hacks . | . . . . . . . . . . . Scanalyzer . | . . . . . . . . . . . Garrison Access Hacks . | . . . . . . . . . . . Unauthorized Hacks . | . . . . . . . . . . . Terminals . | . . . . . . . . . . . Fabricators . | . . . . . . . . . . . Repair Stations . | . . . . . . . . . . . Recycling Units . | . . . . . . . . . . . Scanalyzers . | . . . . . . . . . . . Garrison Access . | . . . . . . . . . . . Data Cores Recovered . | . . . . . . . . . . . Used . | . . . . . . . . . . . Hacking Detections 10 | . . 2 1 1 1 . 3 1 . 1 Full Trace Events 3 | . . 1 . 1 . . 1 . . . Feedback Events . | . . . . . . . . . . . Feedback Blocked . | . . . . . . . . . . . Robot Schematics Acquired . | . . . . . . . . . . . Robots Built . | . . . . . . . . . . . Authchips . | . . . . . . . . . . . Time . | . . . . . . . . . . . Total Robot Build Rating . | . . . . . . . . . . . Part Schematics Acquired . | . . . . . . . . . . . Parts Built . | . . . . . . . . . . . Authchips . | . . . . . . . . . . . Time . | . . . . . . . . . . . Total Part Build Rating . | . . . . . . . . . . . Parts Repaired . | . . . . . . . . . . . Time . | . . . . . . . . . . . Parts Recycled . | . . . . . . . . . . . Recycled Matter . | . . . . . . . . . . . Retrieved Matter . | . . . . . . . . . . . Retrieved Components . | . . . . . . . . . . . Parts Scanalyzed . | . . . . . . . . . . . Part Schematics Acquired . | . . . . . . . . . . . Parts Damaged . | . . . . . . . . . . . Bothacking | -11 -10 -9 -8 -7 -6 -6 -5 -4 -4 -3 ------------ Run | Yrd Mat Mat Mat Fac Fac DSF Fac Fac DSF Res Used RIF Installer . | . . . . . . . . . . . Robots Hacked . | . . . . . . . . . . . Non-combat . | . . . . . . . . . . . Combat . | . . . . . . . . . . . Robot Hacks Applied . | . . . . . . . . . . . Relay Couplers Released . | . . . . . . . . . . . Fabnet Peak Effective % . | . . . . . . . . . . . Robots Rewired . | . . . . . . . . . . . Allies Hacked . | . . . . . . . . . . . Hacks Repelled . | . . . . . . . . . . . Allies | -11 -10 -9 -8 -7 -6 -6 -5 -4 -4 -3 -------- Run | Yrd Mat Mat Mat Fac Fac DSF Fac Fac DSF Res Total Allies . | . . . . . . . . . . . Largest Group . | . . . . . . . . . . . Highest-Rated Group . | . . . . . . . . . . . Highest-Rated Ally . | . . . . . . . . . . . Total Orders . | . . . . . . . . . . . Ally Attacks . | . . . . . . . . . . . Total Damage . | . . . . . . . . . . . Kills . | . . . . . . . . . . . Allies Corrupted . | . . . . . . . . . . . Allies Melted . | . . . . . . . . . . . Intel | -11 -10 -9 -8 -7 -6 -6 -5 -4 -4 -3 ------- Run | Yrd Mat Mat Mat Fac Fac DSF Fac Fac DSF Res Robot Analysis Total . | . . . . . . . . . . . Derelict Logs Recovered . | . . . . . . . . . . . Drone Launches . | . . . . . . . . . . . Drone Recoveries . | . . . . . . . . . . . Exploration | -11 -10 -9 -8 -7 -6 -6 -5 -4 -4 -3 ------------- Run | Yrd Mat Mat Mat Fac Fac DSF Fac Fac DSF Res Turns Passed 889 | 9 30 104 70 105 77 21 132 27 33 281 Spaces Moved 2011 | 18 60 191 105 225 184 30 430 62 80 626 Core 668 | 18 60 191 105 24 20 . . 1 . 249 Treads . | . . . . . . . . . . . Legs . | . . . . . . . . . . . Wheels . | . . . . . . . . . . . Hover . | . . . . . . . . . . . Flight 1343 | . . . . 201 164 30 430 61 80 377 Fastest Speed 25 | 50 50 50 50 35 40 25 25 39 39 35 Average Speed 39 | 50 50 50 50 36 41 36 27 39 39 42 Slowest Speed 50 | 50 50 50 50 50 50 40 39 50 39 50 Overloaded Moves . | . . . . . . . . . . . Propulsion Burnouts . | . . . . . . . . . . . Robots Hopped 22 | . . . . 6 1 . 8 . . 7 Cave-ins Triggered . | . . . . . . . . . . . Exploration Rate (%) 23 | 3 14 30 17 11 8 40 18 3 88 28 Regions Visited 10 Branch Regions . Pre-discovered Areas . | . . . . . . . . . . . Known Exits Taken 5 | . . 1 . 1 1 . 1 1 . . Unknown Exits Taken 3 | 1 1 . 1 . . . . . . . Scrap Searched . | . . . . . . . . . . . Spaces Dug 7 | . . . . . . . 2 . . 5 Terrain Destroyed 23 | . . . . . . . 2 . . 21 Melee 2 | . . . . . . . 2 . . . Projectile . | . . . . . . . . . . . AOE 21 | . . . . . . . . . . 21 Terrain Rammed . | . . . . . . . . . . . Walls Destroyed . | . . . . . . . . . . . Machines Disabled . | . . . . . . . . . . . Actions | -11 -10 -9 -8 -7 -6 -6 -5 -4 -4 -3 --------- Run | Yrd Mat Mat Mat Fac Fac DSF Fac Fac DSF Res Total 2064 | 17 59 198 121 241 183 37 432 63 80 633 Wait . | . . . . . . . . . . . Move 1962 | 17 59 190 104 213 181 29 415 61 79 614 Hop 19 | . . . . 6 1 . 7 . . 5 Pick Up 7 | . . 1 . 3 . 1 2 . . . Fast Attach 14 | . . . . 1 1 5 1 2 1 3 Attach 7 | . . . . . . 1 4 . . 2 Detach 3 | . . . . . . 1 . . . 2 Swap 1 | . . . . . . . 1 . . . Drop . | . . . . . . . . . . . Fire 2 | . . . . . . . . . . 2 Melee 2 | . . . . . . . 2 . . . Ram 29 | . . 7 17 . . . . . . 5 Kick . | . . . . . . . . . . . Crush . | . . . . . . . . . . . Escape Stasis 18 | . . . . 18 . . . . . . Rewire . | . . . . . . . . . . . Trap . | . . . . . . . . . . . Miscellaneous . | . . . . . . . . . . . Route ------- -11/Scrapyard -10/Materials -9/Materials (discovered 4 exits: *Mat x3 / [*Min]) -8/Materials -7/Factory (discovered 4 exits: *Fac x4) -6/Factory -6/DSF -5/Factory (discovered 5 exits: *Fac x4 / [*Upp]) -4/Factory -4/DSF -3/Research History --------- Turn | Location | Event 2 | -11/Scrapyard | Discovered new exit (range 16) 10 | -11/Scrapyard | Entered Materials 33 | -10/Materials | Discovered new exit (range 15) 40 | -10/Materials | Entered another Materials area 40 | -9/Materials | Evolved 2 slots: Propulsion x1, Utility x1 93 | -9/Materials | Discovered new exit (range 15) 97 | -9/Materials | Identified exit to Materials 132 | -9/Materials | Core integrity fell below 50% 140 | -9/Materials | Core integrity fell below 20% 144 | -9/Materials | Entered another Materials area 144 | -8/Materials | Evolved 2 slots: Propulsion x1, Utility x1 206 | -8/Materials | Core integrity fell below 50% 209 | -8/Materials | Discovered new exit (range 11) 214 | -8/Materials | Entered Factory 214 | -7/Factory | Evolved 2 slots: Propulsion x1, Utility x1 304 | -7/Factory | Build established: Mutant 305 | -7/Factory | Identified exit to Factory 319 | -7/Factory | Entered another Factory area 319 | -6/Factory | Evolved 2 slots: Propulsion x1, Utility x1 396 | -6/Factory | Identified exit to DSF 396 | -6/Factory | Entered DSF 406 | -6/DSF | Discovered new exit (range 11) 417 | -6/DSF | Entered Factory 417 | -5/Factory | Evolved 2 slots: Power x1, Utility x1 527 | -5/Factory | Identified exit to Factory 527 | -5/Factory | Discovered new exit (range 3) 549 | -5/Factory | Entered another Factory area 549 | -4/Factory | Evolved 2 slots: Propulsion x1, Utility x1 576 | -4/Factory | Lost 5 parts (1p4n) 576 | -4/Factory | Identified exit to DSF 576 | -4/Factory | Entered DSF 600 | -4/DSF | Additional patrols routed to DSF 603 | -4/DSF | Discovered new exit (range 16) 609 | -4/DSF | Entered Research 609 | -3/Research | Evolved 2 slots: Propulsion x1, Utility x1 705 | -3/Research | Found Prototype Processor 705 | -3/Research | Identified Spectral Analyzer 769 | -3/Research | Lost 4 parts (3n1u) 868 | -3/Research | Core integrity fell below 50% 875 | -3/Research | Spotted B-86 Titan 887 | -3/Research | Core integrity fell below 20% 890 | -3/Research | Search patrols dispatched 890 | -3/Research | Destroyed by P-80 Master with Gamma Rifle Last Messages --------------- 00844_ O-32 Director: "IFF HANDSHAKE FAILED. SECURING TERMINAL." 00852_ K-01 Serf cleans the Graviton Restrictor. 00856_ ALERT: Hostiles spotted, dispatching reinforcements to Terminal R018. 00859_ ALERT: Rogue bot located, Programmers report to Research Zone 8F. 00861_ W-44 Eye sends out distress signal. 00862_ Acquired Q-thruster. 00869_ O-24 Administrator: "IFF HANDSHAKE FAILED. SECURING TERMINAL." 00870_ O-24 Administrator sends out distress signal. 00870_ O-24 Administrator: "IFF HANDSHAKE FAILED. SECURING TERMINAL." 00875_ C-30 ARC bursts open, deploying its payload. 00875_ P-80 Master unfolds itself. 00876_ ALERT: Hostiles spotted, dispatching reinforcements to Terminal R012. 00880_ Engineering Station disabled. 00880_ Q-thruster destroyed. 00882_ ALERT: Hostiles spotted, dispatching reinforcements to Terminal R009. 00882_ K-01 Serf collects debris. 00882_ Slammed into S-43 Plague. 00883_ K-01 Serf collects debris. 00884_ P-80 Master resets S-43 Plague, system corruption cleaned. 00890_ ALERT: Heightened foreign activity detected, multiple search patrols dispatched. Map ----- +----------------------------------------------------+ | ?????????????????????????????????????????????????? | | ?????????????????????????????????????????????????? | | ?????????????????????????????????????????????????? | | ?????????????????????????????????????????????????? | | ?????????????????????????????????????????????????? | | ?????????????????????????????????????????????????? | | ???????????????????????????????????????????????? | | ??????????????????????????????????????????????? | | ???????????????????????????????????????????????? | | ???????????????????????????????????????????????? | | ???????????????????????????????????????????????? | | ???????????????????????????????????????????????? | | ???????????????????????????????????????????????? | | ????????????????????????????????????????????????? | | ????????????????????????????????????????????????? | | ????????????????????????????????????????????????? | | ????????????????????????????????????????????????? | | #############+#########??????????????????????????? | | #??????????????????????????? | | #?????????#????????????????? | | #???????? #????????????????? | | +??????? #????????????????? | | """ #?????? ?????????????????? | | ]! """ !] #????? ????????#??????????? | | != """ !] #####+###### #??????????? | | ! p p !] @ A +??????????? | | ss p ##### ###???????????? | | R g sp ss% #???????????????????? | | ss s #???????????????????? | | #####+;#####/######+##########???????????????????? | | #??? ???????????????????????????? | | #? [ ??????????H??????????????? | | """" " "" # ???????????????????????? | | """" """"" # """ ?????????????????????? | | """" """" # """ #???????????????????? | | """" """" # !!! """ #???????????????????? | | # !![ """ #???????????????????? | | # !![ """ #???????????????????? | | ############## #???????????????????? | | #????# #???????????????????? | | ###########""" "?"####???????????????????? | | # #?#"""S"?????????????????????????? | | # ##########???????????????????????? | | # """ # #???????????????????????? | | # ""F # #???????????????????????? | | # "" # #???????????????????????? | | # """ # #?????????????#######???? | | """ # """ # " " #?????????????# #???? | | """ # / "T" #????????????## #???? | | """ / # """ #????######### #???? | +----------------------------------------------------+ Best States ------------- Heat Dissipation 46 Energy Generation 18 Energy Capacity 160 Matter Stores 300 Matter Capacity 300 Sight Range 24 Terrain Scan Density 10 Armor Coverage 150 Utility Shielding 66 Evasion (%) 65 Offensive Hacking 10 Item Schematics ----------------- None Robot Schematics ------------------ None Fabricated ------------ Nothing Alien Tech Used ----------------- None Achievements -------------- None Challenges ------------ None Game ------ Seed DisruptionFlightSubcomponent Manual? 0 Play Time 00:24:58 Cumulative 96.9 hours Start 2024.10.20 @ 22:49:56 End 2024.10.20 @ 23:09:41 Sessions 1 Manual Loads 0 Difficulty Rogue Special Mode None Game No. 121 Rogue 121 Adventurer 0 Explorer 0 Win Type - Total 13 Types 12/0/1/0/0/0/0/0/0 Lore% 36 Gallery% 48 Achievement% 50 Wizard Run 0 Options --------- Layout 0 ASCII 0 Keyboard 1 Movement Numpad Keybinds 0 Fullscreen 2 Font 18/SmallcapsGlow Map View 112x50 Zoom Use 0% Tactical HUD 1 Map Filters NONE Filters NONE Steam 1 RUN: 22d3d94c-90aa-4abd-9f8b-f04e252d9b4f